fUSD/lending_fUSD_20251024
["ID","MTS","AMOUNT","RATE_DAILY","PERIOD"]
[392263805,1761291047841,-291.32004,0.00038367,120]
[392263806,1761291047850,-151.0,0.00038367,120]
[392263807,1761291047859,-291.32004,0.00038367,120]
[392263808,1761291047868,-151.0,0.00038367,120]
[392263809,1761291047878,-151.0,0.00038367,120]
[392263810,1761291047887,-151.0,0.00038367,120]
[392263811,1761291047896,-155.845477,0.00038367,120]
[392263812,1761291047905,-151.0,0.00038367,120]
[392263813,1761291047915,-151.0,0.00038367,120]
[392263814,1761291047928,-151.0,0.00038367,120]
[392263815,1761291047938,-151.0,0.00038367,120]
[392263816,1761291047953,-151.0,0.00038367,120]
[392263817,1761291047963,-162.060662,0.00038367,120]
[392263818,1761291047972,-390.861031,0.00038367,120]
[392263819,1761291047986,-390.861031,0.00038367,120]
[392263820,1761291047995,-151.0,0.00038367,120]
[392263821,1761291048005,-390.861031,0.00038367,120]
[392263822,1761291048015,-603.310145,0.00038367,120]
[392263823,1761291048024,-151.0,0.00038367,120]
[392263824,1761291048033,-603.310145,0.00038367,120]
[392263825,1761291048043,-390.861031,0.00038367,120]
[392263826,1761291048053,-151.0,0.00038367,120]
[392263827,1761291048063,-151.0,0.00038367,120]
[392263828,1761291048073,-264.07043,0.00038367,120]
[392263829,1761291048085,-603.310145,0.00038367,120]
[392263830,1761291048094,-603.310145,0.00038367,120]
[392263831,1761291048103,-151.0,0.00038367,120]
[392263832,1761291048113,-151.0,0.00038367,120]
[392263833,1761291048122,-293.384748,0.00038367,120]
[392263834,1761291048133,-417.44174,0.00038367,120]
[392263835,1761291048143,-417.44174,0.00038367,120]
[392263836,1761291048152,-417.44174,0.00038367,120]
[392263837,1761291048162,-151.0,0.00038367,30]
[392263838,1761291048171,-151.0,0.00038367,120]
[392263839,1761291048182,-417.441736,0.00038367,120]
[392263840,1761291048191,-156.273034,0.00038367,120]
[392263841,1761291048200,-437.57494,0.00038367,120]
[392263842,1761291048210,-437.57494,0.00038367,120]
[392263843,1761291048219,-437.57494,0.00038367,120]
[392263844,1761291048229,-506.902855,0.00038367,120]
[392263845,1761291048238,-437.574933,0.00038367,120]
[392263846,1761291048248,-506.902855,0.00038367,120]
[392263847,1761291048258,-506.902855,0.00038367,120]
[392263848,1761291048266,-506.90285,0.00038367,120]
[392263849,1761291048276,-156.335908,0.00038367,120]
[392263850,1761291048285,-151.0,0.00038367,120]
[392263851,1761291048294,-151.0,0.00038367,120]
[392263852,1761291048304,-151.0,0.00038367,120]
[392263853,1761291048313,-255.79046,0.00038367,120]
[392263854,1761291048323,-224.412732,0.00038367,120]
[392263855,1761291048332,-203.90658,0.00038367,120]
[392263856,1761291048341,-203.90658,0.00038367,120]
[392263857,1761291048351,-203.90658,0.00038367,120]
[392263858,1761291048360,-151.0,0.00038367,120]
[392263859,1761291048370,-153.894172,0.00038367,120]
[392263860,1761291048379,-203.906575,0.00038367,120]
[392263861,1761291048388,-151.0,0.00038367,120]
[392263862,1761291048397,-151.0,0.00038367,120]
[392263863,1761291048407,-290.098047,0.00038367,120]
[392263864,1761291048416,-162.539405,0.00038367,120]
[392263865,1761291048428,-151.0,0.00038367,120]
[392263866,1761291048437,-162.539405,0.00038367,120]
[392263867,1761291048447,-162.539405,0.00038367,120]
[392263868,1761291048455,-7864.270142,0.00038367,120]
[392263869,1761291048465,-162.539406,0.00038367,120]
[392263870,1761291048474,-250.424314,0.00038367,120]
[392263871,1761291048485,-7864.270142,0.00038367,120]
[392263872,1761291048494,-3899.68124,0.0003838,2]
[392263873,1761291048503,-191.0,0.00038505,2]
[392263874,1761291048513,-794.0,0.00038548,7]
[392263875,1761291048523,-794.0,0.0003856,2]
[392263876,1761291048533,-794.0,0.00038593,2]
[392263877,1761291048542,-150.0,0.00038599,7]
[392263878,1761291048551,-150.0,0.00038599,7]
[392263879,1761291048560,-150.0,0.00038599,7]
[392263880,1761291048570,-150.0,0.00038599,7]
[392263881,1761291048579,-150.0,0.00038599,7]
[392263882,1761291048587,-794.0,0.00038615,2]
[392263883,1761291048597,-3487.0,0.00038633,2]
[392263884,1761291048608,-37397.1899053,0.00038668,3]
[392263885,1761291048618,-151.0,0.00038678,120]
[392263886,1761291048628,-213.636811,0.00038678,120]
[392263887,1761291048638,-257.177357,0.00038678,120]
[392263888,1761291048650,-257.177357,0.00038678,120]
[392263889,1761291048660,-151.0,0.00038678,120]
[392263890,1761291048670,-257.177357,0.00038678,120]
[392263891,1761291048680,-151.0,0.00038678,120]
[392263892,1761291048690,-482.94563,0.00038678,120]
[392263893,1761291048700,-151.0,0.00038678,120]
[392263894,1761291048709,-257.177357,0.00038678,120]
[392263895,1761291048718,-151.0,0.00038678,120]
[392263896,1761291048728,-158.932779,0.00038678,120]
[392263897,1761291048738,-156.450772,0.00038678,60]
[392263898,1761291048748,-482.94563,0.00038678,120]
[392263899,1761291048757,-151.0,0.00038678,120]
[392263900,1761291048767,-720.557569,0.00038678,120]
[392263901,1761291048777,-151.0,0.00038678,120]
[392263902,1761291048786,-151.0,0.00038678,120]
[392263903,1761291048795,-151.0,0.00038678,120]
[392263904,1761291048807,-482.94563,0.00038678,120]
[392263905,1761291048817,-720.557569,0.00038678,120]
[392263906,1761291048826,-194.654087,0.00038678,120]
[392263907,1761291048837,-154.747179,0.00038678,120]
[392263908,1761291048846,-720.557569,0.00038678,120]
[392263909,1761291048856,-482.94563,0.00038678,120]
[392263910,1761291048865,-720.557569,0.00038678,120]
[392263911,1761291048875,-1208.740315,0.00038678,30]
[392263912,1761291048888,-1208.740315,0.00038678,30]
[392263913,1761291048897,-291.32004,0.00038678,120]
[392263914,1761291048907,-154.006066,0.00038678,120]
[392263915,1761291048916,-1208.740315,0.00038678,30]
[392263916,1761291048932,-291.32004,0.00038678,120]
[392263917,1761291048941,-1208.740315,0.00038678,30]
[392263918,1761291048951,-291.32004,0.00038678,120]
[392263919,1761291048963,-151.0,0.00038678,120]
[392263920,1761291048973,-291.32004,0.00038678,120]
[392263921,1761291048984,-151.0,0.00038678,120]
[392263922,1761291048995,-151.0,0.00038678,120]
[392263923,1761291049008,-151.0,0.00038678,120]
[392263924,1761291049018,-151.0,0.00038678,120]
[392263925,1761291049027,-151.0,0.00038678,120]
[392263926,1761291049037,-151.0,0.00038678,120]
[392263927,1761291049046,-151.0,0.00038678,120]
[392263928,1761291049056,-151.0,0.00038678,120]
[392263929,1761291049065,-390.861031,0.00038678,120]
[392263930,1761291049074,-390.861031,0.00038678,120]
[392263931,1761291049083,-603.310145,0.00038678,120]
[392263932,1761291049092,-390.861031,0.00038678,120]
[392263933,1761291049101,-603.310145,0.00038678,120]
[392263934,1761291049110,-390.861031,0.00038678,120]
[392263935,1761291049119,-603.310145,0.00038678,120]
[392263936,1761291049128,-603.310145,0.00038678,120]
[392263937,1761291049138,-151.0,0.00038678,120]
[392263938,1761291049147,-150.99,0.00038678,2]
[392263939,1761291049158,-12159.09,0.00038678,2]
[392263940,1761291049167,-9999.99,0.00038678,2]
[392263941,1761291049177,-999.99,0.00038678,2]
[392263942,1761291049187,-9999.99,0.00038678,2]
[392263943,1761291049196,-8187.62,0.00038678,2]
[392263944,1761291049205,-10233.2,0.00038678,2]
[392263945,1761291049214,-9735.49,0.00038678,2]
[392263946,1761291049223,-418.84,0.00038728,2]
[392263947,1761291049233,-191.0,0.00038751,2]
[392263948,1761291049243,-18698.5949527,0.00038754,3]
[392263949,1761291049252,-150.0,0.00038853,7]
[392263950,1761291049262,-279.21970504,0.00038853,2]
[392263951,1761291049271,-3899.68124,0.0003888,2]
[392263952,1761291049281,-1800.0,0.000389,14]
[392263953,1761291049291,-1357.72,0.000389,14]
[392263954,1761291049300,-1502.90900814,0.00038904,5]
[392263955,1761291049310,-1002.28699612,0.00038904,5]
[392263956,1761291049320,-1500.0,0.00038904,5]
[392263957,1761291049331,-500.0,0.00038904,5]
[392263958,1761291049341,-1002.04286902,0.00038904,5]
[392263959,1761291049351,-18597.33229978,0.0003893,2]
[392263960,1761291049360,-476.35224409,0.00038975,2]
[392263961,1761291049369,-37397.1899053,0.0003898,3]
[392263962,1761291049378,-30757.6906587,0.0003898,3]
[392263963,1761291049388,-151.0,0.0003899,120]
[392263964,1761291049398,-151.0,0.0003899,120]
[392263965,1761291049407,-234.551572,0.0003899,120]
[392263966,1761291049417,-2272.212768,0.0003899,120]
[392263967,1761291049427,-151.0,0.0003899,120]
[392263968,1761291049436,-151.0,0.0003899,120]
[392263969,1761291049445,-154.782639,0.0003899,120]
[392263970,1761291049455,-151.0,0.0003899,120]
[392263971,1761291049465,-257.161118,0.0003899,120]
[392263972,1761291049474,-257.161118,0.0003899,120]
[392263973,1761291049483,-151.0,0.0003899,120]
[392263974,1761291049493,-151.901811,0.0003899,120]
[392263975,1761291049502,-151.0,0.0003899,120]
[392263976,1761291049512,-151.0,0.0003899,120]
[392263977,1761291049521,-1038.708301,0.0003899,120]
[392263978,1761291049531,-151.0,0.0003899,120]
[392263979,1761291049540,-1038.708301,0.0003899,120]
[392263980,1761291049549,-151.0,0.0003899,120]
[392263981,1761291049559,-1038.708301,0.0003899,120]
[392263982,1761291049568,-151.0,0.0003899,120]
[392263983,1761291049577,-1038.708301,0.0003899,120]
[392263984,1761291049586,-151.0,0.0003899,120]
[392263985,1761291049595,-151.0,0.0003899,120]
[392263986,1761291049605,-151.0,0.0003899,120]
[392263987,1761291049614,-151.0,0.0003899,120]
[392263988,1761291049623,-151.0,0.0003899,120]
[392263989,1761291049632,-282.351734,0.0003899,120]
[392263990,1761291049642,-151.0,0.0003899,120]
[392263991,1761291049651,-151.0,0.0003899,120]
[392263992,1761291049660,-151.0,0.0003899,120]
[392263993,1761291049669,-151.0,0.0003899,30]
[392263994,1761291049679,-151.0,0.0003899,120]
[392263995,1761291049688,-151.0,0.0003899,120]
[392263996,1761291049697,-151.0,0.0003899,30]
[392263997,1761291049706,-276.344647,0.0003899,120]
[392263998,1761291049716,-151.0,0.0003899,120]
[392263999,1761291049725,-151.0,0.0003899,120]
[392264000,1761291049735,-151.0,0.0003899,120]
[392264001,1761291049745,-197.474316,0.0003899,120]
[392264002,1761291049755,-197.474316,0.0003899,120]
[392264003,1761291049766,-151.0,0.0003899,120]
[392264004,1761291049775,-151.0,0.0003899,120]
[392264005,1761291049785,-151.0,0.0003899,120]
[392264006,1761291049794,-197.474316,0.0003899,120]
[392264007,1761291049803,-208.390921,0.0003899,120]
[392264008,1761291049812,-151.0,0.0003899,120]
[392264009,1761291049822,-197.474316,0.0003899,120]
[392264010,1761291049831,-151.0,0.0003899,120]
[392264011,1761291049840,-567.151357,0.0003899,120]
[392264012,1761291049850,-154.30712,0.0003899,120]
[392264013,1761291049859,-567.151357,0.0003899,120]
[392264014,1761291049869,-312.995953,0.0003899,120]
[392264015,1761291049878,-151.0,0.0003899,120]
[392264016,1761291049887,-567.151357,0.0003899,120]
[392264017,1761291049896,-312.995953,0.0003899,120]
[392264018,1761291049905,-151.0,0.0003899,120]
[392264019,1761291049914,-151.0,0.0003899,120]
[392264020,1761291049927,-567.151357,0.0003899,120]
[392264021,1761291049936,-312.995953,0.0003899,120]
[392264022,1761291049946,-173.199258,0.0003899,120]
[392264023,1761291049955,-168.246658,0.0003899,120]
[392264024,1761291049966,-312.995953,0.0003899,120]
[392264025,1761291049976,-151.0,0.0003899,120]
[392264026,1761291049985,-189.801417,0.0003899,120]
[392264027,1761291049996,-151.0,0.0003899,120]
[392264028,1761291050005,-112191.569716,0.0003899,3]
[392264029,1761291050015,-151.0,0.0003899,120]
[392264030,1761291050024,-151.0,0.0003899,120]
[392264031,1761291050033,-50594.61548334,0.0003899,3]
[392264032,1761291050509,-57057.30182166,0.0003899,3]
[392264033,1761291050519,-152.905253,0.0003899,120]
[392264034,1761291050529,-1360.39369,0.0003899,120]
[392264035,1761291050538,-1360.39369,0.0003899,120]
[392264036,1761291050548,-1360.39369,0.0003899,120]
[392264037,1761291050558,-1360.39369,0.0003899,120]
[392264038,1761291050567,-257.177357,0.0003899,120]
[392264039,1761291050576,-257.177357,0.0003899,120]
[392264040,1761291050586,-257.177357,0.0003899,120]
[392264041,1761291050595,-151.0,0.0003899,120]
[392264042,1761291050604,-482.94563,0.0003899,120]
[392264043,1761291050613,-151.0,0.0003899,120]
[392264044,1761291050623,-151.0,0.0003899,120]
[392264045,1761291050632,-257.177357,0.0003899,120]
[392264046,1761291050865,-151.0,0.0003899,120]
[392264047,1761291050878,-151.0,0.0003899,120]
[392264048,1761291050888,-482.94563,0.0003899,120]
[392264049,1761291050897,-720.557569,0.0003899,120]
[392264050,1761291050907,-151.0,0.0003899,120]
[392264051,1761291050917,-151.0,0.0003899,120]
[392264052,1761291050933,-151.0,0.0003899,120]
[392264053,1761291050943,-482.94563,0.0003899,120]
[392264054,1761291050954,-720.557569,0.0003899,120]
[392264055,1761291050964,-720.557569,0.0003899,120]
[392264056,1761291050975,-482.94563,0.0003899,120]
[392264057,1761291050985,-720.557569,0.0003899,120]
[392264058,1761291050994,-1208.740315,0.0003899,30]
[392264059,1761291051008,-1208.740315,0.0003899,30]
[392264060,1761291051018,-291.32004,0.0003899,120]
[392264061,1761291051027,-1208.740315,0.0003899,30]
[392264062,1761291051037,-291.32004,0.0003899,120]
[392264063,1761291051046,-1208.740315,0.0003899,30]
[392264064,1761291051056,-291.32004,0.0003899,120]
[392264065,1761291051067,-151.0,0.0003899,120]
[392264066,1761291051077,-291.32004,0.0003899,120]
[392264067,1761291051086,-151.0,0.0003899,120]
[392264068,1761291051095,-151.0,0.0003899,120]
[392264069,1761291051105,-151.0,0.0003899,120]
[392264070,1761291051115,-151.0,0.0003899,120]
[392264071,1761291051125,-151.0,0.0003899,120]
[392264072,1761291051134,-151.0,0.0003899,120]
[392264073,1761291051144,-253.665727,0.0003899,120]
[392264074,1761291051153,-151.0,0.0003899,120]
[392264075,1761291051164,-390.861031,0.0003899,120]
[392264076,1761291051175,-390.861031,0.0003899,120]
[392264077,1761291051184,-603.310145,0.0003899,120]
[392264078,1761291051194,-390.861031,0.0003899,120]
[392264079,1761291051204,-603.310145,0.0003899,120]
[392264080,1761291051214,-390.861031,0.0003899,120]
[392264081,1761291051223,-603.310145,0.0003899,120]
[392264082,1761291051234,-603.310145,0.0003899,120]
[392264083,1761291051243,-151.0,0.0003899,120]
[392264084,1761291051253,-191.0,0.00038996,2]
[392264085,1761291051262,-1716.23490536,0.00039,3]
[392264086,1761291051274,-555.72,0.00039,3]
[392264087,1761291052119,-250.424314,0.00036742,30]
[392264088,1761291052129,-250.424314,0.00036742,30]
[392264089,1761291052139,-6.0926546,0.00036742,30]
[392264090,1761291052173,-407.59167863,0.00036742,30]
[392264091,1761291052189,-7450.58580877,0.00036742,30]
[392264092,1761291052199,-250.424314,0.00036742,30]
[392264093,1761291052208,-7864.270142,0.00036742,30]
[392264094,1761291052217,-151.0,0.00036742,30]
[392264095,1761291052227,-7864.270142,0.00036742,30]
[392264096,1761291052236,-151.0,0.00036742,30]
[392264097,1761291052246,-151.0,0.00036742,30]
[392264098,1761291052255,-250.424314,0.00036742,30]
[392264099,1761291052265,-7864.270142,0.0003797,30]
[392264100,1761291052275,-250.424314,0.0003797,30]
[392264101,1761291052286,-151.0,0.0003797,30]
[392264102,1761291052295,-7864.270142,0.0003797,30]
[392264103,1761291052305,-250.424314,0.00038367,120]
[392264104,1761291052315,-7864.270142,0.00038367,120]
[392264105,1761291052324,-250.424314,0.00038367,120]
[392264106,1761291052334,-2728.04509464,0.00039,3]
[392264107,1761291052344,-4286.0,0.00039,2]
[392264108,1761291052354,-155.0,0.00039,120]
[392264109,1761291052363,-150193.17449975,0.00039,2]
[392264110,1761291052373,-1030.438365,0.00039,120]
[392264111,1761291052383,-4042.785528,0.00039,120]
[392264112,1761291052392,-1030.438365,0.00039,120]
[392264113,1761291052402,-151.0,0.00039,120]
[392264114,1761291052412,-4042.785528,0.00039,120]
[392264115,1761291052421,-1030.438365,0.00039,120]
[392264116,1761291052431,-151.0,0.00039,30]
[392264117,1761291052441,-151.0,0.00039,120]
[392264118,1761291052450,-151.0,0.00039,120]
[392264119,1761291052460,-1030.438365,0.00039,120]
[392264120,1761291052469,-4042.785528,0.00039,120]
[392264121,1761291052478,-151.0,0.00039,120]
[392264122,1761291052487,-251.968229,0.00039,120]
[392264123,1761291052496,-151.0,0.00039,120]
[392264124,1761291052506,-4042.785528,0.00039,120]
[392264125,1761291052515,-251.968229,0.00039,120]
[392264126,1761291052524,-285.445704,0.00039,120]
[392264127,1761291052534,-251.968229,0.00039,120]
[392264128,1761291052544,-251.968229,0.00039,120]
[392264129,1761291052554,-151.0,0.00039,120]
[392264130,1761291052562,-153.833663,0.00039,120]
[392264131,1761291052573,-151.0,0.00039,120]
[392264132,1761291052583,-151.0,0.00039,120]
[392264133,1761291052592,-151.0,0.00039,120]
[392264134,1761291052601,-151.0,0.00039,120]
[392264135,1761291052611,-151.0,0.00039,120]
[392264136,1761291052620,-151.0,0.00039,120]
[392264137,1761291052630,-151.0,0.00039,120]
[392264138,1761291052639,-151.0,0.00039,120]
[392264139,1761291052649,-151.0,0.00039,120]
[392264140,1761291052658,-151.0,0.00039,120]
[392264141,1761291052668,-151.0,0.00039,120]
[392264142,1761291052677,-161.463321,0.00039,120]
[392264143,1761291052686,-151.0,0.00039,120]
[392264144,1761291052696,-151.0,0.00039,120]
[392264145,1761291052705,-151.0,0.00039,30]
[392264146,1761291052715,-151.0,0.00039,120]
[392264147,1761291052724,-151.0,0.00039,120]
[392264148,1761291052733,-151.0,0.00039,30]
[392264149,1761291052743,-151.0,0.00039,120]
[392264150,1761291052752,-154.518086,0.00039,120]
[392264151,1761291052762,-197.474316,0.00039,120]
[392264152,1761291052771,-151.0,0.00039,120]
[392264153,1761291052780,-197.474316,0.00039,120]
[392264154,1761291052790,-151.0,0.00039,120]
[392264155,1761291052799,-151.0,0.00039,120]
[392264156,1761291052808,-151.0,0.00039,120]
[392264157,1761291052818,-197.474316,0.00039,120]
[392264158,1761291052827,-151.0,0.00039,120]
[392264159,1761291052837,-197.474316,0.00039,120]
[392264160,1761291052846,-218.966974,0.00039,120]
[392264161,1761291052856,-567.151357,0.00039,120]
[392264162,1761291052865,-567.151357,0.00039,120]
[392264163,1761291052874,-312.995953,0.00039,120]
[392264164,1761291052883,-151.0,0.00039,120]
[392264165,1761291052893,-567.151357,0.00039,120]
[392264166,1761291052902,-312.995953,0.00039,120]
[392264167,1761291052912,-151.0,0.00039,120]
[392264168,1761291052927,-151.0,0.00039,120]
[392264169,1761291052936,-567.151357,0.00039,120]
[392264170,1761291052946,-312.995953,0.00039,120]
[392264171,1761291052955,-312.995953,0.00039,120]
[392264172,1761291052966,-151.0,0.00039,120]
[392264173,1761291052975,-151.0,0.00039,120]
[392264174,1761291052984,-151.0,0.00039,120]
[392264175,1761291052994,-151.0,0.00039,120]
[392264176,1761291053006,-1360.39369,0.00039,120]
[392264177,1761291053015,-902.70852468,0.00039,5]
[392264178,1761291053025,-1360.39369,0.00039,120]
[392264179,1761291053034,-1360.39369,0.00039,120]
[392264180,1761291053044,-1360.39369,0.00039,120]
[392264181,1761291053053,-257.177357,0.00039,120]
[392264182,1761291053063,-257.177357,0.00039,120]
[392264183,1761291053073,-151.0,0.00039,120]
[392264184,1761291053082,-257.177357,0.00039,120]
[392264185,1761291053092,-482.94563,0.00039,120]
[392264186,1761291053101,-151.0,0.00039,120]
[392264187,1761291053110,-151.0,0.00039,120]
[392264188,1761291053120,-257.177355,0.00039,120]
[392264189,1761291053129,-151.0,0.00039,120]
[392264190,1761291053138,-151.0,0.00039,120]
[392264191,1761291053149,-482.94563,0.00039,120]
[392264192,1761291053223,-720.557569,0.00039,120]
[392264193,1761291053234,-151.0,0.00039,120]
[392264194,1761291053244,-156.405759,0.00039,120]
[392264195,1761291053254,-231.829585,0.00039,120]
[392264196,1761291053263,-482.94563,0.00039,120]
[392264197,1761291053273,-720.557569,0.00039,120]
[392264198,1761291053283,-720.557569,0.00039,120]
[392264199,1761291053293,-482.945625,0.00039,120]
[392264200,1761291053303,-720.55756,0.00039,120]
[392264201,1761291053312,-1208.740315,0.00039,30]
[392264202,1761291053322,-1208.740315,0.00039,30]
[392264203,1761291053331,-291.32004,0.00039,120]
[392264204,1761291053341,-1208.740315,0.00039,30]
[392264205,1761291053351,-291.32004,0.00039,120]
[392264206,1761291053360,-1208.740309,0.00039,30]
[392264207,1761291053369,-291.32004,0.00039,120]
[392264208,1761291053379,-151.0,0.00039,120]
[392264209,1761291053388,-291.320045,0.00039,120]
[392264210,1761291053397,-151.0,0.00039,120]
[392264211,1761291053407,-151.0,0.00039,120]
[392264212,1761291053416,-151.0,0.00039,120]
[392264213,1761291053426,-151.0,0.00039,120]
[392264214,1761291053435,-175.122109,0.00039,120]
[392264215,1761291053444,-151.0,0.00039,120]
[392264216,1761291053454,-151.0,0.00039,120]
[392264217,1761291053462,-390.861031,0.00039,120]
[392264218,1761291053472,-390.861031,0.00039,120]
[392264219,1761291053481,-603.310145,0.00039,120]
[392264220,1761291053490,-390.861031,0.00039,120]
[392264221,1761291053499,-603.310145,0.00039,120]
[392264222,1761291053508,-390.861032,0.00039,120]
[392264223,1761291053518,-603.310145,0.00039,120]
[392264224,1761291053527,-603.310136,0.00039,120]
[392264225,1761291053538,-151.0,0.00039,120]
[392264226,1761291053549,-150.0,0.0003901,7]
[392264227,1761291053559,-153.21090878,0.00039095,2]
[392264228,1761291053568,-908.69,0.000391,30]
[392264229,1761291053577,-150.0,0.00039107,7]
[392264230,1761291053587,-1000.0,0.00039116,7]
[392264231,1761291053597,-15378.8453294,0.00039151,3]
[392264232,1761291053606,-1139.96472135,0.00039153,2]
[392264233,1761291053615,-18698.5949527,0.00039163,3]
[392264234,1761291053625,-214.62849482,0.00039173,5]
[392264235,1761291053634,-509.52637745,0.00039173,5]
[392264236,1761291053643,-501.32970145,0.00039173,5]
[392264237,1761291053653,-500.0,0.00039173,5]
[392264238,1761291053662,-500.0,0.00039173,5]
[392264239,1761291053671,-500.0,0.00039173,2]
[392264240,1761291053680,-500.0,0.00039173,5]
[392264241,1761291053689,-150.0,0.00039173,5]
[392264242,1761291053699,-161.65667294,0.00039173,5]
[392264243,1761291053708,-74794.3798106,0.00039175,3]
[392264244,1761291053717,-76894.2266468,0.00039175,3]
[392264245,1761291053727,-37397.1899053,0.00039175,3]
[392264246,1761291053736,-30757.6906587,0.00039175,3]
[392264247,1761291053745,-1000.0,0.00039179,7]
[392264248,1761291053754,-151.0,0.00039185,120]
[392264249,1761291053763,-151.0,0.00039185,120]
[392264250,1761291053773,-151.0,0.00039185,120]
[392264251,1761291053782,-153.855845,0.00039185,120]
[392264252,1761291053791,-207.025725,0.00039185,120]
[392264253,1761291053800,-207.025725,0.00039185,120]
[392264254,1761291053810,-207.025725,0.00039185,120]
[392264255,1761291053819,-207.025725,0.00039185,120]
[392264256,1761291053829,-151.0,0.00039185,60]
[392264257,1761291053838,-151.0,0.00039185,120]
[392264258,1761291053847,-151.0,0.00039185,120]
[392264259,1761291053857,-151.0,0.00039185,120]
[392264260,1761291053867,-151.0,0.00039185,120]
[392264261,1761291053876,-151.0,0.00039185,120]
[392264262,1761291053886,-151.0,0.00039185,120]
[392264263,1761291053895,-151.0,0.00039185,120]
[392264264,1761291053904,-166.946419,0.00039185,120]
[392264265,1761291053913,-161.25438,0.00039185,120]
[392264266,1761291053924,-155.765211,0.00039185,120]
[392264267,1761291053934,-152.360655,0.00039185,120]
[392264268,1761291053944,-151.0,0.00039185,120]
[392264269,1761291053954,-151.0,0.00039185,120]
[392264270,1761291053963,-151.0,0.00039185,120]
[392264271,1761291053974,-151.0,0.00039185,120]
[392264272,1761291053983,-157.64513,0.00039185,120]
[392264273,1761291053993,-151.0,0.00039185,120]
[392264274,1761291054005,-151.0,0.00039185,120]
[392264275,1761291054014,-154.474921,0.00039185,120]
[392264276,1761291054024,-1038.708301,0.00039185,120]
[392264277,1761291054036,-151.0,0.00039185,120]
[392264278,1761291054046,-1038.708301,0.00039185,120]
[392264279,1761291054056,-151.0,0.00039185,120]
[392264280,1761291054065,-1038.708301,0.00039185,120]
[392264281,1761291054075,-151.0,0.00039185,120]
[392264282,1761291054084,-1038.708301,0.00039185,120]
[392264283,1761291054095,-152.591698,0.00039185,120]
[392264284,1761291054104,-151.0,0.00039185,120]
[392264285,1761291054115,-1030.438365,0.00039185,120]
[392264286,1761291054125,-4042.785528,0.00039185,120]
[392264287,1761291054134,-1030.438365,0.00039185,120]
[392264288,1761291054144,-151.0,0.00039185,120]
[392264289,1761291054153,-151.0,0.00039185,30]
[392264290,1761291054162,-1030.438365,0.00039185,120]
[392264291,1761291054172,-151.0,0.00039185,120]
[392264292,1761291054181,-4042.785528,0.00039185,120]
[392264293,1761291054191,-151.0,0.00039185,120]
[392264294,1761291054200,-1030.438365,0.00039185,120]
[392264295,1761291054210,-191.419066,0.00039185,120]
[392264296,1761291054219,-4042.785528,0.00039185,120]
[392264297,1761291054229,-251.968229,0.00039185,120]
[392264298,1761291054238,-151.0,0.00039185,120]
[392264299,1761291054247,-4042.785528,0.00039185,120]
[392264300,1761291054257,-251.968229,0.00039185,120]
[392264301,1761291054266,-251.968229,0.00039185,120]
[392264302,1761291054276,-251.968229,0.00039185,120]
[392264303,1761291054286,-151.0,0.00039185,120]
[392264304,1761291054294,-151.0,0.00039185,120]